[Event "Early-Titled-Tuesday-Blitz-October-10-2023"]
[Site "Chess.com"]
[Date "2023.10.10"]
[Round "5"]
[White "F-Ghaith2021"]
[Black "DonJuanEGenaro"]
[Result "0-1"]
[WhiteElo "2494"]
[BlackElo "1876"]
[TimeControl "180+1"]
[EndTime "8:50:52 PDT"]
[Termination "DonJuanEGenaro won by resignation"]

1. e4 {[%clk 0:02:58.7]} 1... d6 {[%clk 0:03:00.1]} 2. d4 {[%clk 0:02:58.6]}
2... e5 {[%clk 0:03:00.2]} 3. Bc4 {[%clk 0:02:57.7]} 3... c6 {[%clk 0:02:57]} 4.
Nf3 {[%clk 0:02:56.7]} 4... Nf6 {[%clk 0:02:53.7]} 5. dxe5 {[%clk 0:02:55.1]}
5... Nxe4 {[%clk 0:02:53.3]} 6. exd6 {[%clk 0:02:47.4]} 6... Bxd6 {[%clk
0:02:50.4]} 7. O-O {[%clk 0:02:41.9]} 7... O-O {[%clk 0:02:48.3]} 8. Nc3 {[%clk
0:02:38.2]} 8... Nxc3 {[%clk 0:02:46.8]} 9. bxc3 {[%clk 0:02:39.1]} 9... Bg4
{[%clk 0:02:45.6]} 10. h3 {[%clk 0:02:35.3]} 10... Bh5 {[%clk 0:02:44]} 11. Qd3
{[%clk 0:02:30.6]} 11... Bg6 {[%clk 0:02:35.5]} 12. Qd4 {[%clk 0:02:30.1]} 12...
c5 {[%clk 0:02:29.5]} 13. Qd5 {[%clk 0:02:26]} 13... Qc7 {[%clk 0:02:24.2]} 14.
Bg5 {[%clk 0:02:18.9]} 14... Nc6 {[%clk 0:02:16.2]} 15. Rfe1 {[%clk 0:02:13]}
15... h6 {[%clk 0:02:01.2]} 16. Be3 {[%clk 0:02:10.2]} 16... Rad8 {[%clk
0:01:59.7]} 17. Kh1 {[%clk 0:01:51.3]} 17... Be7 {[%clk 0:01:59.3]} 18. Ne5
{[%clk 0:01:05.9]} 18... Nxe5 {[%clk 0:01:41.3]} 0-1

[Event "Early-Titled-Tuesday-Blitz-October-10-2023"]
[Site "Chess.com"]
[Date "2023.10.10"]
[Round "5"]
[White "fastestmindalive"]
[Black "shimastream"]
[Result "0-1"]
[WhiteElo "2748"]
[BlackElo "2988"]
[TimeControl "180+1"]
[EndTime "8:50:54 PDT"]
[Termination "shimastream won by resignation"]

1. e4 {[%clk 0:03:00.9]} 1... d6 {[%clk 0:02:59]} 2. d4 {[%clk 0:03:00.4]} 2...
c6 {[%clk 0:02:59.7]} 3. a4 {[%clk 0:02:59.9]} 3... Qc7 {[%clk 0:02:57.9]} 4.
Nc3 {[%clk 0:03:00]} 4... e5 {[%clk 0:02:58.1]} 5. Nf3 {[%clk 0:02:59.6]} 5...
Nf6 {[%clk 0:02:57.5]} 6. Bc4 {[%clk 0:02:59.4]} 6... Bg4 {[%clk 0:02:57.1]} 7.
Be3 {[%clk 0:02:57.6]} 7... Be7 {[%clk 0:02:56.7]} 8. h3 {[%clk 0:02:57.5]} 8...
Bh5 {[%clk 0:02:56.5]} 9. Ne2 {[%clk 0:02:57.7]} 9... Nxe4 {[%clk 0:02:55.2]}
10. g4 {[%clk 0:02:43.6]} 10... Bg6 {[%clk 0:02:55]} 11. h4 {[%clk 0:02:43.2]}
11... h5 {[%clk 0:02:54.8]} 12. g5 {[%clk 0:02:19.2]} 12... Nd7 {[%clk
0:02:49.2]} 13. c3 {[%clk 0:02:17.2]} 13... O-O {[%clk 0:02:44.4]} 14. a5 {[%clk
0:02:13.6]} 14... Rfe8 {[%clk 0:02:36.9]} 15. Kf1 {[%clk 0:02:10.2]} 15... d5
{[%clk 0:02:33.8]} 16. Bb3 {[%clk 0:02:05]} 16... Bd6 {[%clk 0:02:33.9]} 17. c4
{[%clk 0:01:58.4]} 17... exd4 {[%clk 0:02:29.3]} 18. Nexd4 {[%clk 0:01:58.8]}
18... dxc4 {[%clk 0:02:24.8]} 19. Bxc4 {[%clk 0:01:58.3]} 19... Ne5 {[%clk
0:02:24.6]} 20. a6 {[%clk 0:01:46.4]} 20... Nxc4 {[%clk 0:02:22.9]} 21. Qb3
{[%clk 0:01:40.3]} 21... Nxe3+ {[%clk 0:02:20.6]} 22. fxe3 {[%clk 0:01:38.8]}
22... bxa6 {[%clk 0:02:18.3]} 23. Kg2 {[%clk 0:01:35.9]} 23... c5 {[%clk
0:02:17]} 24. Ne2 {[%clk 0:01:34.8]} 24... Rab8 {[%clk 0:02:16]} 25. Qc4 {[%clk
0:01:31.8]} 25... Rxb2 {[%clk 0:02:15.5]} 26. Rhe1 {[%clk 0:01:25.4]} 26... Qb7
{[%clk 0:02:12.9]} 27. Rad1 {[%clk 0:01:19.9]} 27... Bg3 {[%clk 0:02:08]} 28.
Qa4 {[%clk 0:01:17.2]} 28... Qb5 {[%clk 0:02:04.6]} 0-1

[Event "Early-Titled-Tuesday-Blitz-October-10-2023"]
[Site "Chess.com"]
[Date "2023.10.10"]
[Round "5"]
[White "ural58"]
[Black "Krakozia"]
[Result "0-1"]
[WhiteElo "2507"]
[BlackElo "2990"]
[TimeControl "180+1"]
[EndTime "8:51:05 PDT"]
[Termination "Krakozia won by resignation"]

1. e4 {[%clk 0:02:55.9]} 1... c5 {[%clk 0:02:59.9]} 2. Nf3 {[%clk 0:02:55.1]}
2... e6 {[%clk 0:03:00.5]} 3. b3 {[%clk 0:02:54.5]} 3... a6 {[%clk 0:02:57.4]}
4. Bb2 {[%clk 0:02:53.7]} 4... d5 {[%clk 0:02:56.8]} 5. exd5 {[%clk 0:02:50.6]}
5... exd5 {[%clk 0:02:57.2]} 6. Be2 {[%clk 0:02:39.5]} 6... Nf6 {[%clk
0:02:54.5]} 7. O-O {[%clk 0:02:39.1]} 7... Nc6 {[%clk 0:02:54.3]} 8. d4 {[%clk
0:02:32.9]} 8... Be7 {[%clk 0:02:54.4]} 9. dxc5 {[%clk 0:02:31.9]} 9... O-O
{[%clk 0:02:50.2]} 10. Nd4 {[%clk 0:02:00.8]} 10... Bxc5 {[%clk 0:02:46.7]} 11.
Nxc6 {[%clk 0:02:00.4]} 11... bxc6 {[%clk 0:02:46.5]} 12. Nd2 {[%clk 0:01:59]}
12... Re8 {[%clk 0:02:43.6]} 13. Bf3 {[%clk 0:01:56.5]} 13... Bf5 {[%clk
0:02:37.9]} 14. Re1 {[%clk 0:01:42.7]} 14... Qd6 {[%clk 0:02:33.5]} 15. Rxe8+
{[%clk 0:01:40.5]} 15... Rxe8 {[%clk 0:02:32.5]} 16. Qf1 {[%clk 0:01:23.2]}
16... Qf4 {[%clk 0:02:21.8]} 17. Bc1 {[%clk 0:01:00.4]} 17... Qd4 {[%clk
0:02:09.8]} 18. Rb1 {[%clk 0:00:39.6]} 18... Bxc2 {[%clk 0:02:09.9]} 19. Rb2
{[%clk 0:00:39.5]} 19... Bd3 {[%clk 0:02:07.7]} 0-1

[Event "Early-Titled-Tuesday-Blitz-October-10-2023"]
[Site "Chess.com"]
[Date "2023.10.10"]
[Round "5"]
[White "Xqswdc"]
[Black "vladgoncharov"]
[Result "0-1"]
[WhiteElo "2329"]
[BlackElo "2521"]
[TimeControl "180+1"]
[EndTime "8:51:23 PDT"]
[Termination "vladgoncharov won by resignation"]

1. e4 {[%clk 0:03:00.9]} 1... e6 {[%clk 0:02:59.5]} 2. d4 {[%clk 0:03:00.7]}
2... d5 {[%clk 0:02:59.7]} 3. Nc3 {[%clk 0:03:01.4]} 3... Bb4 {[%clk 0:02:59]}
4. e5 {[%clk 0:03:01]} 4... c5 {[%clk 0:02:58]} 5. a3 {[%clk 0:03:01.6]} 5...
Bxc3+ {[%clk 0:02:57.8]} 6. bxc3 {[%clk 0:03:02.5]} 6... Qc7 {[%clk 0:02:57.9]}
7. Qg4 {[%clk 0:02:50.6]} 7... f6 {[%clk 0:02:57]} 8. Bb5+ {[%clk 0:02:47.3]}
8... Kf8 {[%clk 0:02:56.6]} 9. Ne2 {[%clk 0:02:40.7]} 9... a6 {[%clk 0:02:49.9]}
10. Bf4 {[%clk 0:02:29.6]} 10... f5 {[%clk 0:02:44.1]} 11. Qh4 {[%clk 0:02:19]}
11... axb5 {[%clk 0:02:41.6]} 12. g4 {[%clk 0:02:17.6]} 12... Ne7 {[%clk
0:02:31.4]} 13. Ng3 {[%clk 0:02:11.2]} 13... cxd4 {[%clk 0:02:19.9]} 14. gxf5
{[%clk 0:02:02.9]} 14... Nxf5 {[%clk 0:02:10.4]} 15. Nxf5 {[%clk 0:02:00.8]}
15... exf5 {[%clk 0:02:10.3]} 16. e6 {[%clk 0:01:58.3]} 16... Qe7 {[%clk
0:02:09.3]} 17. Qg3 {[%clk 0:01:45.4]} 17... Qxe6+ {[%clk 0:02:05.9]} 18. Kd1
{[%clk 0:01:45.6]} 18... Nc6 {[%clk 0:02:00.2]} 19. Re1 {[%clk 0:01:44.5]} 19...
Qg6 {[%clk 0:01:57.7]} 20. Bd6+ {[%clk 0:01:43.9]} 20... Kf7 {[%clk 0:01:55.4]}
21. Qd3 {[%clk 0:01:35.3]} 21... Qxd6 {[%clk 0:01:45.6]} 22. cxd4 {[%clk
0:01:30.1]} 22... b4 {[%clk 0:01:40.6]} 23. a4 {[%clk 0:01:29.2]} 23... Be6
{[%clk 0:01:33]} 24. Rg1 {[%clk 0:01:27.4]} 24... g6 {[%clk 0:01:30.3]} 25. h4
{[%clk 0:01:27.3]} 25... Qf4 {[%clk 0:01:23.7]} 26. Qb5 {[%clk 0:01:19.9]} 26...
Qxd4+ {[%clk 0:01:21.1]} 27. Ke2 {[%clk 0:01:20.5]} 27... Qc4+ {[%clk
0:01:19.2]} 0-1

[Event "Early-Titled-Tuesday-Blitz-October-10-2023"]
[Site "Chess.com"]
[Date "2023.10.10"]
[Round "5"]
[White "wannabe2700"]
[Black "Kotofeyca"]
[Result "1-0"]
[WhiteElo "2666"]
[BlackElo "2427"]
[TimeControl "180+1"]
[EndTime "8:51:32 PDT"]
[Termination "wannabe2700 won by checkmate"]

1. Nf3 {[%clk 0:03:00.9]} 1... d5 {[%clk 0:02:56.3]} 2. Ne5 {[%clk 0:03:00.5]}
2... f6 {[%clk 0:02:50.5]} 3. e4 {[%clk 0:02:59.9]} 3... g6 {[%clk 0:01:49.2]}
4. exd5 {[%clk 0:02:54.2]} 4... fxe5 {[%clk 0:01:46.1]} 5. Bc4 {[%clk
0:02:48.3]} 5... Nf6 {[%clk 0:01:44.3]} 6. Nc3 {[%clk 0:02:47.9]} 6... Nbd7
{[%clk 0:01:28.5]} 7. d3 {[%clk 0:02:45]} 7... Nb6 {[%clk 0:01:28.1]} 8. Qe2
{[%clk 0:02:39.6]} 8... Nbxd5 {[%clk 0:00:24.1]} 9. Nxd5 {[%clk 0:02:33.5]} 9...
Nxd5 {[%clk 0:00:25]} 10. Qxe5 {[%clk 0:02:33.5]} 10... Nf6 {[%clk 0:00:25.6]}
11. O-O {[%clk 0:02:19.8]} 11... Qd6 {[%clk 0:00:26.1]} 12. Qe2 {[%clk
0:02:19.4]} 12... Bg4 {[%clk 0:00:22.2]} 13. f3 {[%clk 0:02:18.4]} 13... Bd7
{[%clk 0:00:21.2]} 14. Be3 {[%clk 0:02:13.1]} 14... a6 {[%clk 0:00:19.3]} 15. b4
{[%clk 0:02:10.4]} 15... Nd5 {[%clk 0:00:18]} 16. Bc5 {[%clk 0:02:09.9]} 16...
Qc6 {[%clk 0:00:15.8]} 17. Rfe1 {[%clk 0:02:09.5]} 17... O-O-O {[%clk 0:00:15]}
18. a4 {[%clk 0:02:09]} 18... Bg7 {[%clk 0:00:13.1]} 19. d4 {[%clk 0:02:08.1]}
19... Rhe8 {[%clk 0:00:11]} 20. b5 {[%clk 0:02:08.1]} 20... axb5 {[%clk
0:00:11.3]} 21. axb5 {[%clk 0:02:08.5]} 21... Qxc5 {[%clk 0:00:04.8]} 22. Ra8#
{[%clk 0:02:07.6]} 1-0

[Event "Early-Titled-Tuesday-Blitz-October-10-2023"]
[Site "Chess.com"]
[Date "2023.10.10"]
[Round "5"]
[White "azikom"]
[Black "IngOscarArdila"]
[Result "1-0"]
[WhiteElo "2591"]
[BlackElo "2314"]
[TimeControl "180+1"]
[EndTime "8:51:33 PDT"]
[Termination "azikom won by resignation"]

1. c4 {[%clk 0:02:58.9]} 1... Nf6 {[%clk 0:00:16]} 2. Nc3 {[%clk 0:02:59.8]}
2... e6 {[%clk 0:00:15.2]} 3. e4 {[%clk 0:02:50.8]} 3... d6 {[%clk 0:00:14.9]}
4. d4 {[%clk 0:02:50.3]} 4... Be7 {[%clk 0:00:15.5]} 5. f4 {[%clk 0:02:50.7]}
5... O-O {[%clk 0:00:16]} 6. Nf3 {[%clk 0:02:51.4]} 6... c5 {[%clk 0:00:16.5]}
7. d5 {[%clk 0:02:51.2]} 7... exd5 {[%clk 0:00:16.6]} 8. cxd5 {[%clk 0:02:52.1]}
8... a6 {[%clk 0:00:16.2]} 9. a4 {[%clk 0:02:51.3]} 9... Bg4 {[%clk 0:00:16.2]}
10. h3 {[%clk 0:02:47.9]} 10... Bxf3 {[%clk 0:00:16.4]} 11. Qxf3 {[%clk
0:02:48.8]} 11... Nbd7 {[%clk 0:00:17.1]} 12. g4 {[%clk 0:02:45.9]} 12... h6
{[%clk 0:00:16.4]} 13. h4 {[%clk 0:02:45.4]} 13... Ne8 {[%clk 0:00:16.3]} 14. g5
{[%clk 0:02:45.4]} 14... f6 {[%clk 0:00:15.2]} 15. gxh6 {[%clk 0:02:44.5]} 15...
f5 {[%clk 0:00:12.4]} 16. hxg7 {[%clk 0:02:41.9]} 16... Nxg7 {[%clk 0:00:11.7]}
17. h5 {[%clk 0:02:38.5]} 17... Bh4+ {[%clk 0:00:11.5]} 18. Kd1 {[%clk
0:02:37.8]} 18... fxe4 {[%clk 0:00:10.9]} 19. Qxe4 {[%clk 0:02:35.8]} 19... Nf6
{[%clk 0:00:10.4]} 20. Qg6 {[%clk 0:02:32.3]} 20... Ng4 {[%clk 0:00:06.4]} 21.
Qxg4 {[%clk 0:02:29]} 21... Bf2 {[%clk 0:00:05.1]} 22. h6 {[%clk 0:02:28]} 22...
Qe7 {[%clk 0:00:05.6]} 23. Qxg7+ {[%clk 0:02:25.1]} 23... Qxg7 {[%clk
0:00:05.9]} 24. hxg7 {[%clk 0:02:26]} 24... Kxg7 {[%clk 0:00:06.8]} 25. Ne4
{[%clk 0:02:22.4]} 25... Rh8 {[%clk 0:00:07.7]} 26. Rxh8 {[%clk 0:02:21]} 26...
Rxh8 {[%clk 0:00:07.8]} 27. Nxf2 {[%clk 0:02:21.6]} 1-0

[Event "Early-Titled-Tuesday-Blitz-October-10-2023"]
[Site "Chess.com"]
[Date "2023.10.10"]
[Round "5"]
[White "Jojo_898"]
[Black "BeanScreen"]
[Result "0-1"]
[WhiteElo "2406"]
[BlackElo "2731"]
[TimeControl "180+1"]
[EndTime "8:51:43 PDT"]
[Termination "BeanScreen won by resignation"]

1. e4 {[%clk 0:03:00.9]} 1... e5 {[%clk 0:02:59.7]} 2. Nf3 {[%clk 0:03:00.5]}
2... Nc6 {[%clk 0:02:59.9]} 3. Bc4 {[%clk 0:03:00.3]} 3... Nf6 {[%clk
0:02:59.5]} 4. d3 {[%clk 0:02:59.5]} 4... Be7 {[%clk 0:02:59.8]} 5. O-O {[%clk
0:02:59.6]} 5... O-O {[%clk 0:03:00.1]} 6. a3 {[%clk 0:02:59.3]} 6... d5 {[%clk
0:02:58.7]} 7. exd5 {[%clk 0:02:58.1]} 7... Nxd5 {[%clk 0:02:59.6]} 8. h3 {[%clk
0:02:57.7]} 8... a6 {[%clk 0:02:58.5]} 9. Bd2 {[%clk 0:02:56.6]} 9... Nb6 {[%clk
0:02:56.5]} 10. Ba2 {[%clk 0:02:56]} 10... Bd6 {[%clk 0:02:56.6]} 11. Nc3 {[%clk
0:02:55.3]} 11... Kh8 {[%clk 0:02:56.2]} 12. Ne4 {[%clk 0:02:55.2]} 12... h6
{[%clk 0:02:55]} 13. Nxd6 {[%clk 0:02:52.7]} 13... cxd6 {[%clk 0:02:54]} 14. Re1
{[%clk 0:02:50.7]} 14... f5 {[%clk 0:02:50.3]} 15. Qc1 {[%clk 0:02:48]} 15...
Qf6 {[%clk 0:02:48.8]} 16. c4 {[%clk 0:02:37]} 16... Be6 {[%clk 0:02:17.9]} 17.
c5 {[%clk 0:02:27.3]} 17... Bxa2 {[%clk 0:02:17.2]} 18. Rxa2 {[%clk 0:02:25.3]}
18... Nd5 {[%clk 0:02:16.9]} 19. Qc4 {[%clk 0:02:21.1]} 19... Qe6 {[%clk
0:01:52.5]} 20. cxd6 {[%clk 0:02:18.9]} 20... Qxd6 {[%clk 0:01:53.4]} 21. b4
{[%clk 0:02:09.9]} 21... f4 {[%clk 0:01:51.6]} 22. d4 {[%clk 0:01:59.2]} 22...
exd4 {[%clk 0:01:42.4]} 23. Nxd4 {[%clk 0:01:58.3]} 23... Nb6 {[%clk 0:01:42.5]}
24. Qe6 {[%clk 0:01:01.9]} 24... Qxd4 {[%clk 0:01:40.6]} 25. Rc2 {[%clk
0:01:01.1]} 25... Qd3 {[%clk 0:01:32.2]} 26. Rb2 {[%clk 0:00:50.2]} 26... Nc4
{[%clk 0:01:29]} 0-1

[Event "Early-Titled-Tuesday-Blitz-October-10-2023"]
[Site "Chess.com"]
[Date "2023.10.10"]
[Round "5"]
[White "viktorskliarov"]
[Black "Alexander_Donchenko"]
[Result "0-1"]
[WhiteElo "2646"]
[BlackElo "2837"]
[TimeControl "180+1"]
[EndTime "8:51:57 PDT"]
[Termination "Alexander_Donchenko won by resignation"]

1. e4 {[%clk 0:03:00.9]} 1... c6 {[%clk 0:03:00.3]} 2. d4 {[%clk 0:03:00.9]}
2... d5 {[%clk 0:03:00.9]} 3. e5 {[%clk 0:03:01.5]} 3... Bf5 {[%clk 0:03:00.7]}
4. Nf3 {[%clk 0:03:02.1]} 4... e6 {[%clk 0:03:01]} 5. Be2 {[%clk 0:03:02.7]}
5... Ne7 {[%clk 0:03:00.6]} 6. O-O {[%clk 0:03:02.8]} 6... c5 {[%clk 0:03:00.7]}
7. c4 {[%clk 0:02:59.1]} 7... Nbc6 {[%clk 0:03:00.3]} 8. dxc5 {[%clk 0:02:51.4]}
8... d4 {[%clk 0:03:00.6]} 9. Bd3 {[%clk 0:02:16.3]} 9... Bxd3 {[%clk
0:02:57.5]} 10. Qxd3 {[%clk 0:02:17.2]} 10... Ng6 {[%clk 0:02:57.9]} 11. Re1
{[%clk 0:02:11.9]} 11... Bxc5 {[%clk 0:02:57]} 12. a3 {[%clk 0:02:11.9]} 12...
a5 {[%clk 0:02:56.6]} 13. Nbd2 {[%clk 0:02:06.5]} 13... O-O {[%clk 0:02:56]} 14.
Ne4 {[%clk 0:01:57.9]} 14... Be7 {[%clk 0:02:51.4]} 15. Ng3 {[%clk 0:01:43.5]}
15... Qc7 {[%clk 0:02:45.9]} 16. Nh5 {[%clk 0:01:33.2]} 16... Rac8 {[%clk
0:02:40]} 17. Bf4 {[%clk 0:01:23.2]} 17... Rfd8 {[%clk 0:02:36.2]} 18. Rac1
{[%clk 0:01:19]} 18... a4 {[%clk 0:02:34]} 19. Bg3 {[%clk 0:01:04.5]} 19... Qb6
{[%clk 0:02:31.7]} 20. Rc2 {[%clk 0:01:01.4]} 20... Qb3 {[%clk 0:02:31.4]} 21.
Qe4 {[%clk 0:00:27.2]} 21... Na5 {[%clk 0:02:19.5]} 22. Rd2 {[%clk 0:00:16.5]}
22... d3 {[%clk 0:02:13.1]} 23. h4 {[%clk 0:00:10]} 23... Nxc4 {[%clk
0:02:07.5]} 24. Nf4 {[%clk 0:00:03.7]} 24... Nxd2 {[%clk 0:02:06]} 25. Nxd2
{[%clk 0:00:04]} 25... Qxb2 {[%clk 0:02:05.6]} 26. Nf3 {[%clk 0:00:03.9]} 26...
d2 {[%clk 0:02:04.8]} 27. Nxd2 {[%clk 0:00:04.1]} 27... Qxd2 {[%clk 0:02:04.2]}
28. h5 {[%clk 0:00:04]} 28... Nxf4 {[%clk 0:02:02.6]} 29. Bxf4 {[%clk
0:00:04.9]} 29... Qd3 {[%clk 0:02:00.4]} 0-1

[Event "Early-Titled-Tuesday-Blitz-October-10-2023"]
[Site "Chess.com"]
[Date "2023.10.10"]
[Round "5"]
[White "MaxLeto"]
[Black "Rutricks"]
[Result "0-1"]
[WhiteElo "2490"]
[BlackElo "2674"]
[TimeControl "180+1"]
[EndTime "8:51:57 PDT"]
[Termination "Rutricks won by resignation"]

1. e4 {[%clk 0:02:59.9]} 1... g6 {[%clk 0:02:48]} 2. d4 {[%clk 0:02:58.9]} 2...
Bg7 {[%clk 0:02:48.9]} 3. Nc3 {[%clk 0:02:58]} 3... c6 {[%clk 0:02:49.8]} 4. Be3
{[%clk 0:02:56.6]} 4... d5 {[%clk 0:02:50.7]} 5. Qd2 {[%clk 0:02:55.6]} 5...
dxe4 {[%clk 0:02:50.2]} 6. Nxe4 {[%clk 0:02:55.6]} 6... Nf6 {[%clk 0:02:51.1]}
7. Nxf6+ {[%clk 0:02:55.4]} 7... exf6 {[%clk 0:02:52]} 8. O-O-O {[%clk
0:02:54.5]} 8... O-O {[%clk 0:02:51.1]} 9. h4 {[%clk 0:02:54.2]} 9... h5 {[%clk
0:02:51.1]} 10. Kb1 {[%clk 0:02:54.5]} 10... b5 {[%clk 0:02:51.1]} 11. Nh3
{[%clk 0:02:50.7]} 11... Bxh3 {[%clk 0:02:42.2]} 12. Rxh3 {[%clk 0:02:48.1]}
12... f5 {[%clk 0:02:43.1]} 13. Bh6 {[%clk 0:02:38.8]} 13... Qd5 {[%clk
0:02:39.4]} 14. Bxg7 {[%clk 0:02:27.8]} 14... Kxg7 {[%clk 0:02:40.3]} 15. Rc3
{[%clk 0:02:15.1]} 15... Nd7 {[%clk 0:02:40.6]} 16. g3 {[%clk 0:02:15.1]} 16...
Nf6 {[%clk 0:02:39]} 17. f3 {[%clk 0:02:07.1]} 17... Qd6 {[%clk 0:02:38]} 18.
Qf2 {[%clk 0:01:56.2]} 18... Nd5 {[%clk 0:02:34.8]} 19. Rc5 {[%clk 0:01:50]}
19... Rfe8 {[%clk 0:02:33.6]} 20. c3 {[%clk 0:01:29.1]} 20... Re7 {[%clk
0:02:23.6]} 21. Bd3 {[%clk 0:01:14.1]} 21... Rae8 {[%clk 0:02:19.5]} 22. Rg1
{[%clk 0:01:14.6]} 22... Re3 {[%clk 0:02:17.2]} 23. Kc2 {[%clk 0:00:18.2]} 23...
b4 {[%clk 0:02:14.8]} 24. g4 {[%clk 0:00:13.3]} 24... bxc3 {[%clk 0:02:10.6]}
25. bxc3 {[%clk 0:00:14.2]} 25... Qf4 {[%clk 0:02:10.7]} 26. gxf5 {[%clk
0:00:10.6]} 26... Rxf3 {[%clk 0:02:10.2]} 27. Qd2 {[%clk 0:00:02.6]} 27... Rf2
{[%clk 0:02:09.5]} 28. f6+ {[%clk 0:00:02.6]} 28... Nxf6 {[%clk 0:02:07.9]} 29.
Qxf2 {[%clk 0:00:02.4]} 29... Qxf2+ {[%clk 0:02:07.6]} 30. Kb3 {[%clk
0:00:03.3]} 30... Rb8+ {[%clk 0:02:07.2]} 0-1

[Event "Early-Titled-Tuesday-Blitz-October-10-2023"]
[Site "Chess.com"]
[Date "2023.10.10"]
[Round "5"]
[White "HeinichessPY"]
[Black "abc_xyz4744"]
[Result "0-1"]
[WhiteElo "2208"]
[BlackElo "2395"]
[TimeControl "180+1"]
[EndTime "8:51:59 PDT"]
[Termination "abc_xyz4744 won by resignation"]

1. e4 {[%clk 0:02:59.5]} 1... c5 {[%clk 0:02:58.4]} 2. Nc3 {[%clk 0:02:57.8]}
2... Nc6 {[%clk 0:02:56.4]} 3. f4 {[%clk 0:02:56.7]} 3... g6 {[%clk 0:02:45.9]}
4. Nf3 {[%clk 0:02:56.7]} 4... Bg7 {[%clk 0:02:44.5]} 5. Bc4 {[%clk 0:02:52.7]}
5... e6 {[%clk 0:02:39.7]} 6. d3 {[%clk 0:02:52.9]} 6... Nge7 {[%clk 0:02:36.7]}
7. O-O {[%clk 0:02:53.2]} 7... d5 {[%clk 0:02:36.1]} 8. Bb3 {[%clk 0:02:53.3]}
8... O-O {[%clk 0:02:35.8]} 9. Qe1 {[%clk 0:02:52.5]} 9... Nd4 {[%clk
0:02:30.5]} 10. f5 {[%clk 0:02:50.7]} 10... gxf5 {[%clk 0:02:24.6]} 11. Qh4
{[%clk 0:02:47.3]} 11... fxe4 {[%clk 0:02:08.8]} 12. dxe4 {[%clk 0:02:44.8]}
12... c4 {[%clk 0:02:03.7]} 13. Bh6 {[%clk 0:02:32.1]} 13... Ng6 {[%clk
0:01:42.5]} 14. Qh5 {[%clk 0:01:56.5]} 14... Nxf3+ {[%clk 0:01:20.6]} 15. Rxf3
{[%clk 0:01:57.4]} 15... cxb3 {[%clk 0:01:20.2]} 16. Bxg7 {[%clk 0:01:49.2]}
16... Kxg7 {[%clk 0:01:19.3]} 17. Rh3 {[%clk 0:01:49.7]} 17... Rh8 {[%clk
0:01:06.2]} 18. Qh6+ {[%clk 0:01:49.2]} 18... Kg8 {[%clk 0:01:04.8]} 19. axb3
{[%clk 0:01:47.3]} 19... d4 {[%clk 0:00:45.6]} 20. Ne2 {[%clk 0:01:40.8]} 20...
Qf8 {[%clk 0:00:39.7]} 21. Qd2 {[%clk 0:01:30.8]} 21... e5 {[%clk 0:00:36.7]}
22. Ng3 {[%clk 0:01:30.9]} 22... Bxh3 {[%clk 0:00:35.1]} 23. gxh3 {[%clk
0:01:28.2]} 23... Nf4 {[%clk 0:00:35.3]} 0-1

[Event "Early-Titled-Tuesday-Blitz-October-10-2023"]
[Site "Chess.com"]
[Date "2023.10.10"]
[Round "5"]
[White "marcodobrikov"]
[Black "bazar-wokzal"]
[Result "1-0"]
[WhiteElo "2772"]
[BlackElo "2554"]
[TimeControl "180+1"]
[EndTime "8:52:04 PDT"]
[Termination "marcodobrikov won on time"]

1. c4 {[%clk 0:03:00.3]} 1... e5 {[%clk 0:02:59.5]} 2. Nc3 {[%clk 0:03:01.2]}
2... Nf6 {[%clk 0:02:56.5]} 3. e3 {[%clk 0:03:02.1]} 3... Bb4 {[%clk 0:02:31]}
4. Qb3 {[%clk 0:02:46.6]} 4... Nc6 {[%clk 0:02:28.6]} 5. a3 {[%clk 0:02:47.1]}
5... Bxc3 {[%clk 0:02:17.4]} 6. Qxc3 {[%clk 0:02:47]} 6... O-O {[%clk
0:02:12.2]} 7. b4 {[%clk 0:02:47.9]} 7... d5 {[%clk 0:02:10.4]} 8. cxd5 {[%clk
0:02:47.7]} 8... Nxd5 {[%clk 0:02:04.8]} 9. Qc2 {[%clk 0:02:46.7]} 9... Be6
{[%clk 0:02:01.3]} 10. Bb2 {[%clk 0:02:47.3]} 10... f6 {[%clk 0:01:56.2]} 11.
Bc4 {[%clk 0:02:46]} 11... Kh8 {[%clk 0:01:53.3]} 12. Ne2 {[%clk 0:02:46.4]}
12... Qd7 {[%clk 0:01:47.3]} 13. O-O {[%clk 0:02:46.4]} 13... Rad8 {[%clk
0:01:46.2]} 14. d4 {[%clk 0:02:46.1]} 14... exd4 {[%clk 0:01:38.4]} 15. Nxd4
{[%clk 0:02:47]} 15... Nxd4 {[%clk 0:01:38.4]} 16. Bxd4 {[%clk 0:02:47.9]} 16...
a6 {[%clk 0:01:35.7]} 17. Bd3 {[%clk 0:02:46.7]} 17... Bg8 {[%clk 0:01:34]} 18.
Rac1 {[%clk 0:02:45.9]} 18... c6 {[%clk 0:01:33.2]} 19. Rfd1 {[%clk 0:02:45.4]}
19... Rfe8 {[%clk 0:01:27]} 20. Bb2 {[%clk 0:02:41.6]} 20... Qg4 {[%clk
0:01:15.3]} 21. h3 {[%clk 0:02:40.9]} 21... Qg5 {[%clk 0:01:12.4]} 22. Be4
{[%clk 0:02:31.1]} 22... Nxe3 {[%clk 0:00:53.5]} 23. Rxd8 {[%clk 0:02:30.9]}
23... Rxd8 {[%clk 0:00:51]} 24. fxe3 {[%clk 0:02:31.3]} 24... Qxe3+ {[%clk
0:00:50.8]} 25. Kh1 {[%clk 0:02:32]} 25... Rd2 {[%clk 0:00:50.9]} 26. Qc3 {[%clk
0:02:29.1]} 26... Qf2 {[%clk 0:00:30.9]} 27. Ba1 {[%clk 0:02:28.2]} 27... Re2
{[%clk 0:00:20.6]} 28. Bf3 {[%clk 0:02:25.9]} 28... Re3 {[%clk 0:00:20]} 29.
Qxf6 {[%clk 0:02:25.1]} 29... Qg3 {[%clk 0:00:04.2]} 30. Bg4 {[%clk 0:02:19.5]}
30... Re1+ {[%clk 0:00:01.7]} 31. Rxe1 {[%clk 0:02:19.5]} 31... Qxe1+ {[%clk
0:00:02.1]} 32. Kh2 {[%clk 0:02:18]} 1-0